Cogmind - Beta 17 @@@ ROGUE MODE // 2026.07.26 @ 02:37:53 Player: rz Result: Destroyed by S-43 Plague with Heavy Machine Gun Performance ------------- Evolutions (8) 4000 Regions Visited (13) 2600 Robots Destroyed (143) 715 Value Destroyed (6443) 6443 Prototype IDs (26) 520 Alien Tech Used (0) 0 Bonus (1940) 1940 TOTAL SCORE: 16218 Bonus ------- High Alert Combat Kills 640 Entered DSFs 1000 Aligned with FarCom 300 Cogmind --------- Core Integrity 0/1450 Matter 300/300 Energy 99/100 System Corruption 2% Temperature Cool (0) Movement Core (50) Location -2/Research Parts ------- > --- POWER (2) -------- (None) > --- PROPULSION (4) --- (None) > --- UTILITY (10) ----- Graphene Brace > --- WEAPON (7) ------- (None) > --- INVENTORY (5) ---- Advanced Surge Thruster YOLO Cannon Peak State ------------ > --- POWER ------------ Micro Antimatter Reactor Micro Antimatter Reactor > --- PROPULSION ------- Myomer Leg Enhanced Biometal Leg > --- UTILITY ---------- Advanced Heat Sink Advanced Heat Sink Advanced Heat Sink Advanced Heat Sink Large Storage Unit Terrain Scan Processor Advanced Target Analyzer Advanced Target Analyzer Weapon Cycler Graphene Brace > --- WEAPON ----------- Gamma Rifle Field Laser Nova Cannon Heavy Machine Gun Improved Plasma Cutter > --- INVENTORY -------- Light Antimatter Reactor Micro Antimatter Reactor Xenon Bombardment Thruster Xenon Bombardment Thruster Impulse Thruster Array Impulse Thruster Array Improved Heat Sink Advanced Heat Sink Compact Matter Pod Compact Matter Pod YOLO Cannon [Rating: 118] Favorites ----------- Power Light Antimatter Reactor Engine Angular Momentum Engine Power Core Nuclear Core Reactor Light Antimatter Reactor Propulsion Armored Medium Treads Treads Armored Medium Treads Leg Myomer Leg Wheel Armored Wheel Flight Unit Impulse Thruster Array Utility Terrain Scan Processor Device Weapon Cycler Storage Medium Storage Unit Processor Terrain Scan Processor Protection Hardened Medium Armor Plating Weapon KE Penetrator Energy Gun Beam Rifle Energy Cannon Nova Cannon Ballistic Gun KE Penetrator Ballistic Cannon Assault Cannon Launcher Mini Grenade Launcher Special Weapon Improved Plasma Cutter Impact Weapon Mace Build | -11 -10 -10 -10 -9 -8 -7 -7 -6 -5 -5 -4 -3 -2 ------- Run | Yrd Mat Min Exi Min Mat Fac DSF Fac Fac DSF Fac Res Res Slots Evolved 16 | . . . . . 4 2 . 2 2 . 2 2 2 Power 1 | . . . . . . . . . . . 1 . . Propulsion 2 | . . . . . . . . . . . . . 2 Utility 8 | . . . . . 2 1 . 2 1 . 1 1 . Weapon 5 | . . . . . 2 1 . . 1 . . 1 . Parts Attached 130 | 7 1 3 1 7 24 1 11 8 5 9 34 17 2 Power 18 | 1 . 1 . . 3 . 1 1 . . 5 5 1 Engine 4 | 1 . 1 . . . . 1 1 . . . . . Core 4 | . . . . . 3 . . . . . 1 . . Reactor 10 | . . . . . . . . . . . 4 5 1 Propulsion 22 | 2 . . . 3 3 . 2 . 2 . 6 3 1 Treads 9 | 2 . . . . 1 . 1 . 1 . 3 1 . Leg 2 | . . . . . . . . . . . 1 1 . Wheel 9 | . . . . 3 2 . 1 . 1 . 2 . . Hover . | . . . . . . . . . . . . . . Flight 2 | . . . . . . . . . . . . 1 1 Utility 39 | 2 . 1 1 . 9 1 4 4 2 1 12 2 . Device 21 | 1 . . . . 2 . 2 4 2 . 8 2 . Storage 5 | 1 . . 1 . 1 . . . . 1 1 . . Processor 8 | . . 1 . . 4 1 . . . . 2 . . Hackware . | . . . . . . . . . . . . . . Protection 5 | . . . . . 2 . 2 . . . 1 . . Artifact . | . . . . . . . . . . . . . . Weapon 51 | 2 1 1 . 4 9 . 4 3 1 8 11 7 . Energy Gun 8 | . . . . . 2 . . 1 . . 2 3 . Energy Cannon 3 | . . . . 1 . . . . . . . 2 . Ballistic Gun 33 | 2 . . . 2 4 . 4 2 1 8 9 1 . Ballistic Cannon 2 | . . . . . 2 . . . . . . . . Launcher 2 | . . 1 . 1 . . . . . . . . . Special Weapon 2 | . 1 . . . . . . . . . . 1 . Impact Weapon 1 | . . . . . 1 . . . . . . . . Slashing Weapon . | . . . . . . . . . . . . . . Piercing Weapon . | . . . . . . . . . . . . . . Special Melee Weapon . | . . . . . . . . . . . . . . Unidentified Prototypes 3 | . . . . . 1 . . . . . 1 1 . Parts Lost 73 | . . . . 5 8 . 3 3 . 1 30 19 4 Power 12 | . . . . 1 1 . . . . . 5 3 2 Propulsion 13 | . . . . 3 1 . . . . . 4 3 2 Utility 16 | . . . . . 2 . . 2 . 1 6 5 . Weapon 32 | . . . . 1 4 . 3 1 . . 15 8 . Highest Loss Streak 9 | . . . . 5 8 . 2 2 . 1 5 9 4 To Critical Strikes . | . . . . . . . . . . . . . . Average Backups 9 | 2 7 8 7 7 8 8 8 8 8 8 11 10 1 Power . | . 2 1 . . . . . . . . . . . Propulsion 2 | 1 2 2 2 1 1 3 3 2 2 2 3 3 . Utility 3 | . 1 1 1 1 3 3 4 2 2 1 4 4 . Weapon 2 | . 1 3 4 3 2 2 1 3 4 4 3 1 1 Tool/Special . | . . . . . . . . . . . . . . Unused Backups 18 | . . 1 2 . 3 . . 1 1 2 1 6 1 Power 2 | . . . 1 . . . . . . . . 1 . Propulsion 9 | . . . . . 1 . . 1 1 . 1 4 1 Utility 3 | . . 1 . . 1 . . . . . . 1 . Weapon 4 | . . . 1 . 1 . . . . 2 . . . Tool/Special . | . . . . . . . . . . . . . . Average Slot Usage (%) 89 | . 100 100 100 82 93 92 98 99 97 98 91 68 15 Engine 3 | . 14 14 14 7 . . 4 6 5 5 1 . . Core 1 | . . . . . 8 7 2 . . . . . . Reactor 2 | . . . . . . . . . . . 6 5 5 Treads 9 | . 28 28 28 16 8 7 7 4 5 6 6 3 . Wheel 4 | . . . . 7 9 7 6 7 5 3 2 1 . Device 14 | . 14 8 . . 3 8 5 22 26 28 23 18 4 Storage 7 | . 14 14 14 14 10 7 7 6 5 5 5 3 . Processor 12 | . . 5 14 14 13 14 15 13 11 11 14 13 . Protection 2 | . . . . . 7 7 8 3 . . . . . Energy Gun 2 | . . . . . 2 15 9 3 . . . 5 . Ballistic Gun 21 | . 23 26 28 20 14 15 23 26 35 34 25 2 . Ballistic Cannon 1 | . . . . . 12 . . . . . . . . Impact Weapon 1 | . . . . . . . 3 1 . . 1 2 . Peak Build Rating 118 | 9 9 9 9 25 29 31 42 53 76 91 112 118 56 Average Rating 54 | 7 9 8 8 8 25 30 36 49 68 86 93 86 41 On Entrance 32 | . 9 9 8 9 8 28 30 39 53 76 89 58 33 Avg Prop Armor Cover (%) 6 | . . . . 15 4 7 5 7 5 7 6 11 . Naked Turns 1 | . . . . . . . . . . . . 1 . Heaviest Build 82 | 12 12 14 16 28 41 36 53 56 56 69 82 82 27 Greatest Support 62 | 40 40 40 40 40 32 12 42 24 27 47 55 62 36 Greatest Overweight (x) 6 | . . . . . 3 2 4 4 4 4 6 2 . Average Overweight (x) 1 | . . . . . 1 2 2 3 2 2 2 1 . Largest Inventory Capacity 15 | 8 8 8 10 10 10 10 10 10 10 15 15 15 5 Average Capacity 11 | 7 8 8 8 10 10 10 10 10 10 10 15 14 5 Most Carried 15 | 5 8 8 8 10 10 10 10 10 10 10 15 15 4 Average Carried 10 | 2 7 7 7 8 9 9 9 9 9 9 12 12 2 Final Capacity 15 | 8 8 8 10 10 10 10 10 10 10 15 15 5 5 Final Carried 10 | 5 8 8 8 7 10 10 10 10 10 10 10 4 3 Class Distribution -------------------- 24% | Mutant 19% | Scavenger-Executioner 18% | Scavenger-Gunner 10% | Skirmisher 10% | Scavenger-Tank 6% | Executioner 4% | Scavenger-Mutant 4% | Scavenger-Skirmisher Dominant Class ---------------- Mutant | -10/Materials Mutant | -10/Mines Mutant | -10/Exiles Mutant | -9/Mines Skirmisher | -8/Materials Scavenger-Skirmisher | -7/Factory Scavenger-Tank | -7/DSF Scavenger-Gunner | -6/Factory Scavenger-Executioner | -5/Factory Executioner | -5/DSF Scavenger-Executioner | -4/Factory Scavenger-Gunner | -3/Research Mutant | -2/Research Resources | -11 -10 -10 -10 -9 -8 -7 -7 -6 -5 -5 -4 -3 -2 ----------- Run | Yrd Mat Min Exi Min Mat Fac DSF Fac Fac DSF Fac Res Res Matter Collected 5978 | 209 . 152 . 271 563 . 599 598 . 465 2839 277 5 Remotely . | . . . . . . . . . . . . . . Salvage Created 6917 | 61 . 97 . 125 607 . 590 669 . 586 3589 593 . Parts 320 | 8 . 9 . 4 53 . 28 28 . 27 146 17 . Haulers Intercepted 4 | . . . . . 3 . . . . . 1 . . Recyclers Shooed 4 | . . . . 1 . . . . . . 2 1 . Parts Field Recycled . | . . . . . . . . . . . . . . Retrieved Matter . | . . . . . . . . . . . . . . Parts Self-Destructed . | . . . . . . . . . . . . . . Prevented . | . . . . . . . . . . . . . . Parts Restored . | . . . . . . . . . . . . . . Kills | -11 -10 -10 -10 -9 -8 -7 -7 -6 -5 -5 -4 -3 -2 ------- Run | Yrd Mat Min Exi Min Mat Fac DSF Fac Fac DSF Fac Res Res Combat Hostiles Destroyed 119 | . . 5 . 10 17 . 13 11 . 10 43 10 . Guns 87 | . . 4 . 1 9 . 13 11 . 10 39 . . Cannons 15 | . . . . . 8 . . . . . . 7 . AOE 14 | . . 1 . 9 . . . . . . 4 . . Classes Destroyed 20 | 1 . 2 . 3 6 . 1 2 . 1 4 . . Worker 7 | . . . . . 1 . . . . . 6 . . Builder 8 | . . . . . 2 . . . . . 6 . . Tunneler 3 | 3 . . . . . . . . . . . . . Hauler 4 | . . . . . 3 . . . . . 1 . . Recycler 5 | . . . . 1 . . . 1 . . 3 . . Mechanic 1 | . . . . . . . . . . . 1 . . Operator 1 | . . . . . . . . 1 . . . . . Watcher 3 | . . . . . . . . . . . 3 . . Swarmer 27 | . . 3 . . 7 . 3 3 . 5 3 3 . Cutter 3 | . . . . . . . . . . 3 . . . Grunt 37 | . . 2 . . 4 . 3 5 . . 20 3 . Brawler 3 | . . . . . . . . . . . 3 . . Duelist 5 | . . . . . . . . . . . 3 2 . Sentry 6 | . . . . . 3 . . 2 . . 1 . . Demolisher 2 | . . . . 2 . . . . . . . . . Specialist 7 | . . . . . 2 . 5 . . . . . . Hunter 4 | . . . . . . . 1 . . 1 2 . . Programmer 13 | . . . . . . . . 1 . . 10 2 . Heavy 4 | . . . . . 1 . 1 . . 1 1 . . Assembled 8 | . . . . 8 . . . . . . . . . Best Kill Streak 10 | 2 . 3 . 9 4 . 3 3 . 6 10 5 . Combat Bots Only 9 | . . 3 . 9 4 . 3 3 . 6 9 5 . Max Kills in Single Turn 5 | 1 . 1 . 4 3 . 2 2 . 3 5 1 . Gunslinging 2 | . . . . . . . 1 1 . 2 2 . . Exploded 4 | . . 1 . 4 . . . . . . 4 . . Melee . | . . . . . . . . . . . . . . Uniques/NPCs Destroyed . | . . . . . . . . . . . . . . Combat | -11 -10 -10 -10 -9 -8 -7 -7 -6 -5 -5 -4 -3 -2 -------- Run | Yrd Mat Min Exi Min Mat Fac DSF Fac Fac DSF Fac Res Res Hostile Shots Fired 920 | . . 18 . 26 63 . 82 51 . 74 318 171 117 Missed 289 | . . 4 . 7 16 . 24 17 . 26 95 45 55 Hits 631 | . . 14 . 19 47 . 58 34 . 48 223 126 62 Melee 47 | . . . . . . . . . . 5 7 18 17 Projectile 584 | . . 14 . 19 47 . 58 34 . 43 216 108 45 AOE 19 | . . . . 15 . . . . . 3 . 1 . Critical Strikes 40 | . . 1 . . 1 . 1 . . 5 16 10 6 Actively Blocked 21 | . . . . . . . . . . . 5 10 6 Damage Taken 13938 | . . 170 . 726 932 . 1152 415 . 933 4515 3188 1907 Core 3243 | . . 16 . 209 136 . 47 95 . 59 396 833 1452 Absorbed by Shields 252 | . . . . . . . 148 52 . . 52 . . Ignored by Resistances 549 | . . . . . . . . . . 208 341 . . Core Remaining (%) 70 | 100 . . . 10 75 . 93 88 . 94 65 35 . Volleys Fired 291 | 7 1 13 . 24 36 . 30 22 . 17 100 41 . Largest 6 | 2 1 2 . 2 4 . 5 5 . 6 6 4 . Hottest 364 | 40 100 50 . 100 164 . 164 214 . 198 197 364 . Shots Fired 1095 | 14 1 25 . 32 121 . 129 105 . 100 457 111 . Gun 978 | 14 . 20 . 25 64 . 129 105 . 100 457 64 . Cannon 105 | . . . . 1 57 . . . . . . 47 . Launcher 11 | . . 5 . 6 . . . . . . . . . Special 1 | . 1 . . . . . . . . . . . . Kinetic 908 | 14 . 20 . 25 117 . 96 89 . 100 428 19 . Thermal 169 | . 1 . . 1 4 . 33 16 . . 29 85 . Explosive 11 | . . 5 . 6 . . . . . . . . . Electromagnetic 7 | . . . . . . . . . . . . 7 . Robot Hit Streak 31 | 5 . 3 . 5 18 . 13 24 . 12 31 13 . Robot Miss Streak 9 | 2 . 2 . 2 9 . 5 4 . 7 7 4 . Penetration Max 2 | . . . . . . . . 1 . 1 2 . . Secondary Targets 23 | . . . . . . . 4 3 . 5 11 . . Max Gunslinging Chain 3 | . . . . . . . 1 1 . 3 2 . . Shots Hit Robots 708 | 9 . 15 . 18 82 . 92 75 . 47 293 77 . Core Hits 348 | 5 . 10 . 23 52 . 36 37 . 23 128 32 2 Critical Kills 20 | . . . . . . . 1 . . 1 16 2 . Critical Parts Destroyed 28 | . . . . . . . . 1 . 3 23 1 . Critical Strikes 61 | . . . . . 1 . 2 1 . 4 42 11 . Burn 11 | . . . . . . . 1 . . . 2 8 . Meltdown 2 | . . . . . . . . . . . . 2 . Destroy 47 | . . . . . . . 1 1 . 4 40 1 . Blast 1 | . . . . . 1 . . . . . . . . Melee Attacks 36 | . . . . . 5 . . 6 . 2 19 4 . Impact 36 | . . . . . 5 . . 6 . 2 19 4 . Slashing . | . . . . . . . . . . . . . . Piercing . | . . . . . . . . . . . . . . Sneak Attacks 3 | . . . . . 1 . . . . . 2 . . Combat Hostiles . | . . . . . . . . . . . . . . Follow-up Attacks . | . . . . . . . . . . . . . . Damage Inflicted 18755 | 88 . 225 . 985 1457 . 1480 1568 . 1255 9270 2386 41 Guns 14171 | 88 . 132 . 140 510 . 1480 1500 . 1255 8015 1051 . Cannons 2351 | . . . . 138 878 . . . . . . 1335 . Explosions 1958 | . . 93 . 707 . . . 68 . . 1090 . . Melee 222 | . . . . . 69 . . . . . 153 . . Ramming 53 | . . . . . . . . . . . 12 . 41 Kinetic 13348 | 88 . 132 . 140 1356 . 1136 1254 . 1255 7613 374 . Thermal 4062 | . . . . 286 32 . 344 246 . . 1293 1861 . Explosive 919 | . . 93 . 559 . . . 68 . . 199 . . Electromagnetic 151 | . . . . . . . . . . . . 151 . Impact 222 | . . . . . 69 . . . . . 153 . . Slashing . | . . . . . . . . . . . . . . Piercing . | . . . . . . . . . . . . . . Highest Corruption 23 | . . . . . . . . . . . 23 7 2 Average Corruption 12 | . . . . . . . . . . . 13 6 2 Corruption Purged . | . . . . . . . . . . . . . . Corruption Blocked . | . . . . . . . . . . . . . . Effects 84 | . . . . . . . . . . . 77 6 1 Message Errors 13 | . . . . . . . . . . . 12 1 . Matter Fused 16 | . . . . . . . . . . . 15 1 . Heat Flow Errors 8 | . . . . . . . . . . . 8 . . Energy Discharges 9 | . . . . . . . . . . . 8 1 . Parts Rejected 2 | . . . . . . . . . . . 2 . . Parts Fused 1 | . . . . . . . . . . . 1 . . Data Loss (minor) 13 | . . . . . . . . . . . 10 2 1 Data Loss (major) 2 | . . . . . . . . . . . 1 1 . Misfires 5 | . . . . . . . . . . . 5 . . Alerts 1 | . . . . . . . . . . . 1 . . Misdirections 3 | . . . . . . . . . . . 3 . . Weapon Failures 11 | . . . . . . . . . . . 11 . . Overload Shots . | . . . . . . . . . . . . . . Overflow Damage 452 | . . . . 136 39 . . . . . 220 57 . Projectiles 145 | . . . . 88 . . . . . . . 57 . Explosions 199 | . . . . 48 . . . . . . 151 . . Melee 108 | . . . . . 39 . . . . . 69 . . Knockbacks 12 | . . . . . 12 . . . . . . . . Impact . | . . . . . . . . . . . . . . Kinetic 12 | . . . . . 12 . . . . . . . . Secondary . | . . . . . . . . . . . . . . Self-Inflicted Damage 43 | . . 19 . . . . . . . . 5 . 19 Shots 3 | . . 3 . . . . . . . . . . . Rammed 9 | . . . . . . . . . . . 2 . 7 Targets Rammed 9 | . . . . . . . . . . . 2 . 7 Kicked . | . . . . . . . . . . . . . . Crushed . | . . . . . . . . . . . . . . Highest Temperature 449 | . 20 9 . . 224 . 138 423 . 144 337 449 . Average Temperature 77 | . 10 4 . . 64 . 57 131 . 49 69 115 . Received Heat Transfer 1230 | . . 54 . . 54 . 144 109 . 99 464 261 45 Effects 2 | . . . . . . . . 1 . . . 1 . Shutdowns 1 | . . . . . . . . . . . . 1 . Short Circuit 1 | . . . . . . . . 1 . . . . . Siege Activations . | . . . . . . . . . . . . . . Martial Activations . | . . . . . . . . . . . . . . Shielding Activations . | . . . . . . . . . . . . . . Robots Disrupted . | . . . . . . . . . . . . . . Combat Hostiles . | . . . . . . . . . . . . . . Robots Corrupted 1 | . . . . . . . . . . . 1 . . Combat Hostiles . | . . . . . . . . . . . . . . Parts Fried 2 | . . . . . 1 . . . . . 1 . . Impact Corruptions 4 | . . . . . 1 . . . . . 3 . . Robots Melted 3 | . . . . . . . . . . . . 3 . Combat Hostiles 3 | . . . . . . . . . . . . 3 . Parts Melted 18 | . . . . 1 . . . . . . 3 14 . Heat Transferred 6030 | . . . . 240 74 . 925 573 . . 1750 2468 . Parts Sabotaged . | . . . . . . . . . . . . . . Parts Stolen . | . . . . . . . . . . . . . . Parts Stripped . | . . . . . . . . . . . . . . Power Chain Reactions . | . . . . . . . . . . . . . . Alert | -11 -10 -10 -10 -9 -8 -7 -7 -6 -5 -5 -4 -3 -2 ------- Run | Yrd Mat Min Exi Min Mat Fac DSF Fac Fac DSF Fac Res Res Maximum Alert Level 3 | . . . . . . . 1 . . 1 3 2 1 Low Security (%) 73 | 100 100 100 . 100 100 100 85 100 100 68 53 . 68 Level 1 7 | . . . . . . . 14 . . 31 13 4 31 Level 2 9 | . . . . . . . . . . . . 95 . Level 3 9 | . . . . . . . . . . . 32 . . Level 4 . | . . . . . . . . . . . . . . Level 5 . | . . . . . . . . . . . . . . High Security . | . . . . . . . . . . . . . . Max Security . | . . . . . . . . . . . . . . Sterilizations 2 | . . . . . . . 1 . . 1 . . . Peak Influence 1075 | 10 15 91 . 36 122 . 295 157 70 249 1075 534 276 Initial 534 | . . . . . . . . 154 70 . 130 534 197 Average 206 | . 1 34 . 3 44 . 99 96 21 117 422 448 190 Influence Increases 4098 | 15 15 161 . 81 488 . 325 395 . 259 1807 333 219 Destroy 0b10 Robot/C 2220 | . . 100 . 40 340 . 260 220 . 200 860 200 . Destroy 0b10 Robot/NC 170 | 15 . . . 5 30 . . 10 . 10 100 . . Destroy Leader 434 | . . 20 . 10 86 . 50 50 . 30 158 30 . Allied During Kill 21 | . . 21 . . . . . . . . . . . Successful Hack 47 | . . . . . 11 . . . . . 12 . 24 Disable Machine 420 | . 15 . . . 15 . . 60 . 15 285 30 . Anti-Garrison Action 150 | . . . . . . . . . . . 150 . . Destroy Structure 276 | . . 20 . 26 6 . . 40 . 4 152 28 . Partial Spotted 15 | . . . . . . . . 15 . . . . . Lose Combat Pursuer 345 | . . . . . . . 15 . . . 90 45 195 Influence Decreases 3832 | 15 15 161 . 81 488 . 30 545 145 10 1037 1001 304 Entered New Map 974 | . . . . . . . . 141 75 . 119 485 154 Time Decay 2063 | 15 15 161 . 49 325 . . 374 70 . 618 326 110 Lost Part 700 | . . . . 20 80 . 30 30 . 10 300 190 40 Lost Ally 12 | . . . . 12 . . . . . . . . . Purge Threat 83 | . . . . . 83 . . . . . . . . Squads Dispatched 30 | . . . . . 3 . 4 3 . 2 13 2 3 Investigation 1 | . . . . . . . . 1 . . . . . Extermination 7 | . . . . . . . . 2 . . 3 1 1 Reinforcement 16 | . . . . . 3 . 4 . . 2 5 . 2 Assault 5 | . . . . . . . . . . . 4 1 . Garrison 1 | . . . . . . . . . . . 1 . . Intercept . | . . . . . . . . . . . . . . Searches Triggered . | . . . . . . . . . . . . . . Construction Impeded 1 | . . . . . . . . . . . 1 . . Haulers Reinforced 2 | . . . . . . . . . . . 2 . . Active Scanning Responses . | . . . . . . . . . . . . . . Cargo Convoy Interrupts . | . . . . . . . . . . . . . . Stealth | -11 -10 -10 -10 -9 -8 -7 -7 -6 -5 -5 -4 -3 -2 --------- Run | Yrd Mat Min Exi Min Mat Fac DSF Fac Fac DSF Fac Res Res Distress Signals 6 | . . . . . 1 . . . . . 5 . . Communications Jammed . | . . . . . . . . . . . . . . Distress Signals . | . . . . . . . . . . . . . . Times Spotted 205 | . . 5 . 20 20 . 18 13 . 15 59 22 33 Peak Tracking Total 16 | . . 3 . 13 4 . 4 4 . 6 6 6 16 Tactical Retreats 12 | . . . . 1 . . 1 . . . 4 3 3 Traps | -11 -10 -10 -10 -9 -8 -7 -7 -6 -5 -5 -4 -3 -2 ------- Run | Yrd Mat Min Exi Min Mat Fac DSF Fac Fac DSF Fac Res Res Traps Triggered 6 | . . . . . 2 . 1 1 . 1 . . 1 Indirectly . | . . . . . . . . . . . . . . Trap Hack Attempts . | . . . . . . . . . . . . . . Triggered . | . . . . . . . . . . . . . . Disarmed . | . . . . . . . . . . . . . . Reprogrammed . | . . . . . . . . . . . . . . Reused . | . . . . . . . . . . . . . . Traps Extracted . | . . . . . . . . . . . . . . Installed . | . . . . . . . . . . . . . . Triggered . | . . . . . . . . . . . . . . Machines | -11 -10 -10 -10 -9 -8 -7 -7 -6 -5 -5 -4 -3 -2 ---------- Run | Yrd Mat Min Exi Min Mat Fac DSF Fac Fac DSF Fac Res Res Machines Disabled 29 | . 1 . . . 1 . . 4 . 1 20 2 . Max in Single Turn 13 | . 1 . . . 1 . . 3 . 1 13 1 . Garrison Access 1 | . . . . . . . . . . . 1 . . Machines Repaired . | . . . . . . . . . . . . . . Machines Dismantled . | . . . . . . . . . . . . . . Machines Sabotaged . | . . . . . . . . . . . . . . Overloaded Fab Kills . | . . . . . . . . . . . . . . Hacking | -11 -10 -10 -10 -9 -8 -7 -7 -6 -5 -5 -4 -3 -2 --------- Run | Yrd Mat Min Exi Min Mat Fac DSF Fac Fac DSF Fac Res Res Machines Accessed 17 | . . . 1 . 4 2 . 3 2 . 2 2 1 Terminals 7 | . . . . . 3 1 . 1 1 . . 1 . Fabricators . | . . . . . . . . . . . . . . Repair Stations . | . . . . . . . . . . . . . . Recycling Units 3 | . . . . . . 1 . 1 1 . . . . Scanalyzers 6 | . . . . . 1 . . 1 . . 2 1 1 Garrison Access . | . . . . . . . . . . . . . . Total Hacks 32 | . . . 1 . 9 4 . 6 2 . 5 2 3 Successful 15 | . . . 1 . 5 2 . 1 2 . 2 1 1 Failed 16 | . . . . . 4 2 . 5 . . 2 1 2 Catastrophic 3 | . . . . . 2 . . . . . . 1 . Database Lockouts 1 | . . . . . . . . . . . 1 . . Manual 4 | . . . 1 . 2 . . . . . . 1 . Terminals 13 | . . . . . 7 2 . 2 1 . . 1 . Fabricators . | . . . . . . . . . . . . . . Repair Stations . | . . . . . . . . . . . . . . Recycling Units 5 | . . . . . . 2 . 2 1 . . . . Scanalyzers 13 | . . . . . 2 . . 2 . . 5 1 3 Garrison Access . | . . . . . . . . . . . . . . Terminal Hacks 6 | . . . 1 . 3 1 . . 1 . . . . Open DSF 2 | . . . . . . 1 . . 1 . . . . Level Access Points 1 | . . . . . 1 . . . . . . . . Unreport Threat 1 | . . . . . 1 . . . . . . . . Zone Layout 1 | . . . . . 1 . . . . . . . . Proto ID Catalog 1 | . . . 1 . . . . . . . . . . Fabricator Hacks . | . . . . . . . . . . . . . . Repair Station Hacks . | . . . . . . . . . . . . . . Recycling Unit Hacks 2 | . . . . . . 1 . . 1 . . . . Retrieve Components 2 | . . . . . . 1 . . 1 . . . . Scanalyzer 7 | . . . . . 2 . . 1 . . 2 1 1 Retrieve Study 7 | . . . . . 2 . . 1 . . 2 1 1 Garrison Access Hacks . | . . . . . . . . . . . . . . Unauthorized Hacks . | . . . . . . . . . . . . . . Terminals . | . . . . . . . . . . . . . . Fabricators . | . . . . . . . . . . . . . . Repair Stations . | . . . . . . . . . . . . . . Recycling Units . | . . . . . . . . . . . . . . Scanalyzers . | . . . . . . . . . . . . . . Garrison Access . | . . . . . . . . . . . . . . Data Cores Recovered . | . . . . . . . . . . . . . . Used . | . . . . . . . . . . . . . . Hacking Detections 12 | . . . . . 3 1 . 3 1 . 2 1 1 Full Trace Events 1 | . . . . . . . . 1 . . . . . Feedback Events . | . . . . . . . . . . . . . . Feedback Blocked . | . . . . . . . . . . . . . . Robot Schematics Acquired . | . . . . . . . . . . . . . . Robots Built . | . . . . . . . . . . . . . . Authchips . | . . . . . . . . . . . . . . Time . | . . . . . . . . . . . . . . Total Robot Build Rating . | . . . . . . . . . . . . . . Part Schematics Acquired . | . . . . . . . . . . . . . . Parts Built . | . . . . . . . . . . . . . . Authchips . | . . . . . . . . . . . . . . Time . | . . . . . . . . . . . . . . Total Part Build Rating . | . . . . . . . . . . . . . . Part Studies Acquired 7 | . . . . . 2 . . 1 . . 2 1 1 Parts Repaired . | . . . . . . . . . . . . . . Time . | . . . . . . . . . . . . . . Parts Recycled . | . . . . . . . . . . . . . . Recycled Matter . | . . . . . . . . . . . . . . Retrieved Matter . | . . . . . . . . . . . . . . Retrieved Components 3 | . . . . . . . . . 3 . . . . Parts Scanalyzed . | . . . . . . . . . . . . . . Part Schematics Acquired . | . . . . . . . . . . . . . . Parts Damaged . | . . . . . . . . . . . . . . Bothacking | -11 -10 -10 -10 -9 -8 -7 -7 -6 -5 -5 -4 -3 -2 ------------ Run | Yrd Mat Min Exi Min Mat Fac DSF Fac Fac DSF Fac Res Res Used RIF Installer . | . . . . . . . . . . . . . . Robots Hacked . | . . . . . . . . . . . . . . Non-combat . | . . . . . . . . . . . . . . Combat . | . . . . . . . . . . . . . . Robot Hacks Applied . | . . . . . . . . . . . . . . Relay Couplers Released 2 | . . . . . . . . . . . 2 . . Machine Destruction 2 | . . . . . . . . . . . 2 . . Fabnet Peak Effective % . | . . . . . . . . . . . . . . Robots Rewired . | . . . . . . . . . . . . . . Allies Hacked . | . . . . . . . . . . . . . . Hacks Repelled . | . . . . . . . . . . . . . . Allies | -11 -10 -10 -10 -9 -8 -7 -7 -6 -5 -5 -4 -3 -2 -------- Run | Yrd Mat Min Exi Min Mat Fac DSF Fac Fac DSF Fac Res Res Total Allies 5 | . . 5 . . . . . . . . . . . Largest Group 5 | . . 5 5 3 . . . . . . . . . Highest-Rated Group 90 | . . 90 90 40 . . . . . . . . . Highest-Rated Ally 31 | . . 31 31 16 . . . . . . . . . Initial Warlord ECA Mod 17 | . . . . . . . . 9 8 8 17 16 15 Total Orders . | . . . . . . . . . . . . . . Ally Attacks 12 | . . . . 12 . . . . . . . . . Total Damage 124 | . . . . 124 . . . . . . . . . Kills 2 | . . . . 2 . . . . . . . . . Allies Corrupted . | . . . . . . . . . . . . . . Allies Melted . | . . . . . . . . . . . . . . Intel | -11 -10 -10 -10 -9 -8 -7 -7 -6 -5 -5 -4 -3 -2 ------- Run | Yrd Mat Min Exi Min Mat Fac DSF Fac Fac DSF Fac Res Res Active Infowar (turns) 1001 | 70 110 237 . . 308 71 115 90 . . . . . Terrain 693 | 70 110 237 . . . 71 115 90 . . . . . Traps 308 | . . . . . 308 . . . . . . . . Robot Analysis Total . | . . . . . . . . . . . . . . Derelict Logs Recovered 1 | . . . . 1 . . . . . . . . . Drone Launches . | . . . . . . . . . . . . . . Drone Recoveries . | . . . . . . . . . . . . . . Exploration | -11 -10 -10 -10 -9 -8 -7 -7 -6 -5 -5 -4 -3 -2 ------------- Run | Yrd Mat Min Exi Min Mat Fac DSF Fac Fac DSF Fac Res Res Turns Passed 7649 | 129 110 380 399 360 1117 71 617 869 255 322 2066 726 228 Spaces Moved 3536 | 61 63 204 242 201 564 62 182 384 105 112 717 344 295 Core 92 | 2 . . . . . . . . . . . 2 88 Treads 1269 | 59 63 204 242 85 169 . 61 . 30 25 267 64 . Legs 78 | . . . . . . . . . . . . 78 . Wheels 1857 | . . . . 116 395 62 121 384 75 87 450 167 . Hover . | . . . . . . . . . . . . . . Flight 240 | . . . . . . . . . . . . 33 207 Fastest Speed 42 | 50 160 160 160 100 100 110 95 110 140 150 110 45 42 Average Speed 147 | 156 160 160 160 125 148 110 155 128 175 177 190 144 44 Slowest Speed 330 | 160 160 160 160 160 225 110 237 140 250 330 250 237 50 Overloaded Moves . | . . . . . . . . . . . . . . Propulsion Burnouts . | . . . . . . . . . . . . . . Robots Hopped 2 | . . . . . . . . . . . . . 2 Potential Cave-ins . | . . . . . . . . . . . . . . Cave-ins Triggered 1 | . . . . . . . . . . . 1 . . Exploration Rate (%) 30 | 3 18 35 63 47 40 2 89 11 3 78 19 8 10 Regions Visited 13 Branch Regions 3 Pre-discovered Areas 1 | . . . . 1 . . . . . . . . . Known Exits Taken 6 | . . 1 1 1 1 1 . . 1 . . . . Unknown Exits Taken 5 | 1 1 . . . . . . 1 . . 1 1 . Scrap Searched 2 | . . 1 . 1 . . . . . . . . . Spaces Dug 26 | . . . . . 2 . . 3 . 2 13 6 . Terrain Destroyed 217 | . . 22 . 41 4 . . 44 . 4 88 14 . Melee 22 | . . . . . 2 . . 3 . 1 12 4 . Projectile 48 | . . . . . 2 . . . . 2 34 10 . AOE 146 | . . 22 . 41 . . . 41 . . 42 . . Terrain Rammed . | . . . . . . . . . . . . . . Walls Destroyed . | . . . . . . . . . . . . . . Machines Disabled . | . . . . . . . . . . . . . . Actions | -11 -10 -10 -10 -9 -8 -7 -7 -6 -5 -5 -4 -3 -2 --------- Run | Yrd Mat Min Exi Min Mat Fac DSF Fac Fac DSF Fac Res Res Total 5297 | 79 68 234 255 278 752 64 444 704 176 194 1169 492 388 Wait 1089 | . . 8 9 37 90 . 202 262 63 26 246 61 85 Move 3519 | 60 62 203 241 200 563 61 181 383 104 111 716 343 291 Hop 2 | . . . . . . . . . . . . . 2 Pick Up 72 | 5 3 3 1 4 14 1 4 6 1 7 11 11 1 Fast Attach 71 | 7 . . . . 18 . 6 3 2 2 17 15 1 Attach 47 | . . . . 6 6 1 3 5 1 3 13 8 1 Detach 5 | . . . . 1 2 . . . . . 2 . . Swap 96 | . 2 4 1 4 6 1 11 11 2 14 35 5 . Drop 60 | . . 3 3 2 12 . 7 6 3 12 8 4 . Fire 291 | 7 1 13 . 24 36 . 30 22 . 17 100 41 . Melee 36 | . . . . . 5 . . 6 . 2 19 4 . Ram 9 | . . . . . . . . . . . 2 . 7 Kick . | . . . . . . . . . . . . . . Crush . | . . . . . . . . . . . . . . Escape Stasis . | . . . . . . . . . . . . . . Rewire . | . . . . . . . . . . . . . . Trap . | . . . . . . . . . . . . . . Miscellaneous . | . . . . . . . . . . . . . . Route ------- -11/Scrapyard -10/Materials -10/Mines (discovered 2 exits: *Exi / *Sub) -10/Exiles (discovered 2 exits: *Min x2) -9/Mines -8/Materials (discovered 3 exits: *Fac x3) -7/Factory -7/DSF -6/Factory -5/Factory -5/DSF -4/Factory -3/Research -2/Research History --------- Turn | Location | Event 12 | -11/Scrapyard | Discovered new exit (range 15) 130 | -11/Scrapyard | Entered Materials 225 | -10/Materials | Discovered new exit (range 9) 240 | -10/Materials | Entered Mines 310 | -10/Mines | Build established: Mutant 336 | -10/Mines | Assisted by bots powering up and referring to "LRC-V3" 465 | -10/Mines | Discovered new exit (range 12) 481 | -10/Mines | Identified exit to Subcaves 538 | -10/Mines | Found a hidden stash of uninstalled traps 548 | -10/Mines | Deemed a non-threat by the Exiles lab entrance 549 | -10/Mines | Discovered new exit (range 5) 610 | -10/Mines | Identified exit to Exiles 620 | -10/Mines | Entered Exiles 620 | -10/Exiles | Accompanied by 5 allies 641 | -10/Exiles | Discovered new exit (range 15) 650 | -10/Exiles | Led the pair of lost Derelicts to a safe place 660 | -10/Exiles | Met 8R-AWN 686 | -10/Exiles | Met EX-HEX 734 | -10/Exiles | Met EX-BIN 752 | -10/Exiles | Aligned with FarCom system 753 | -10/Exiles | Given EX-Vault access code 790 | -10/Exiles | Opened EX-Vault 804 | -10/Exiles | Found YOLO Cannon 838 | -10/Exiles | Warned to stay clear of 0b10 Research branches 882 | -10/Exiles | Met EX-DEC 992 | -10/Exiles | Discovered new exit (range 14) 1008 | -10/Exiles | Identified exit to Mines 1019 | -10/Exiles | Left Exiles lab with YOLO Cannon 1019 | -10/Exiles | Entered Mines 1019 | -9/Mines | Accompanied by 3 allies 1178 | -9/Mines | Assembled infested the area 1183 | -9/Mines | Assisted by a Guerilla fighting off Assembled 1215 | -9/Mines | Core integrity fell below 50% 1229 | -9/Mines | Destroyed 9 combat bots 1236 | -9/Mines | Core integrity fell below 20% 1238 | -9/Mines | Lost 4 allies 1258 | -9/Mines | Learned location of Storage (-7) 1271 | -9/Mines | Lost 5 parts (1p3n1w) 1370 | -9/Mines | Discovered new exit (range 9) 1377 | -9/Mines | Identified exit to Materials 1379 | -9/Mines | Entered Materials 1379 | -8/Materials | Evolved 4 slots: Utility x2, Weapon x2 1763 | -8/Materials | Identified exit to Factory 1798 | -8/Materials | Build established: Skirmisher 2332 | -8/Materials | Lost 8 parts (1p1n2u4w) 2496 | -8/Materials | Entered Factory 2496 | -7/Factory | Evolved 2 slots: Utility x1, Weapon x1 2567 | -7/Factory | Identified exit to DSF 2567 | -7/Factory | Entered DSF 2654 | -7/DSF | Additional patrols routed to DSF 3004 | -7/DSF | Build established: Scavenger-Tank 3111 | -7/DSF | Sterilization system engaged 3131 | -7/DSF | Ambient heat levels rising (+10) 3146 | -7/DSF | Ambient heat levels rising (+10) 3161 | -7/DSF | Ambient heat levels rising (+10) 3171 | -7/DSF | Discovered new exit (range 14) 3176 | -7/DSF | Ambient heat levels rising (+10) 3184 | -7/DSF | Entered Factory 3184 | -6/Factory | Evolved 2 slots: Utility x2 3792 | -6/Factory | Build established: Scavenger-Gunner 3953 | -6/Factory | Discovered new exit (range 16) 4053 | -6/Factory | Entered another Factory area 4053 | -5/Factory | Evolved 2 slots: Utility x1, Weapon x1 4307 | -5/Factory | Identified exit to DSF 4308 | -5/Factory | Entered DSF 4350 | -5/DSF | Additional patrols routed to DSF 4533 | -5/DSF | Sterilization system engaged 4553 | -5/DSF | Ambient heat levels rising (+10) 4568 | -5/DSF | Ambient heat levels rising (+10) 4583 | -5/DSF | Ambient heat levels rising (+10) 4598 | -5/DSF | Ambient heat levels rising (+10) 4607 | -5/DSF | Build established: Executioner 4608 | -5/DSF | Discovered new exit (range 14) 4613 | -5/DSF | Ambient heat levels rising (+10) 4628 | -5/DSF | Ambient heat levels rising (+10) 4630 | -5/DSF | Entered Factory 4630 | -4/Factory | Evolved 2 slots: Power x1, Utility x1 5133 | -4/Factory | Build established: Scavenger-Executioner 5763 | -4/Factory | System corruption reached 10% 5781 | -4/Factory | Lost 5 parts (1p1u3w) 6018 | -4/Factory | Garrison activated, responded to threat 6051 | -4/Factory | Destroyed 9 combat bots 6059 | -4/Factory | Lost 3 parts (1p1u1w) 6130 | -4/Factory | First assault squad dispatched 6271 | -4/Factory | Crushed by falling debris 6302 | -4/Factory | Lost 3 parts (2u1w) 6374 | -4/Factory | Build established: Scavenger-Gunner 6407 | -4/Factory | Central database locked down 6549 | -4/Factory | Lost 4 parts (2n2w) 6677 | -4/Factory | Discovered new exit (range 15) 6696 | -4/Factory | Entered Research 6696 | -3/Research | Evolved 2 slots: Utility x1, Weapon x1 6709 | -3/Research | Lost 4 parts (1p1n1u1w) 7196 | -3/Research | First assault squad dispatched 7238 | -3/Research | Lost 8 parts (2p2n1u3w) 7323 | -3/Research | Discovered new exit (range 16) 7402 | -3/Research | Released all parts (11) 7403 | -3/Research | Core integrity fell below 50% 7422 | -3/Research | Entered another Research area 7422 | -2/Research | Evolved 2 slots: Propulsion x2 7430 | -2/Research | Lost 9 parts (1p1n4u3w) 7600 | -2/Research | Core integrity fell below 50% 7622 | -2/Research | Core integrity fell below 20% 7630 | -2/Research | Lost 4 parts (2p2n) 7650 | -2/Research | Destroyed by S-43 Plague with Heavy Machine Gun Last Messages --------------- 07593_ C-57 Dissector system corrupted by crushing effect. 07593_ C-57 Dissector destroyed. 07594_ Acquired Corrupted Unknown Flight Unit. 07599_ Impulse Thruster Array+ destroyed. 07599_ Knocked back. 07601_ Triggered Shock Trap. 07601_ The floor emits a surge of raw power. 07601_ System corrupted (+2). 07611_ Knocked back. 07618_ Slug penetrates Wall. 07620_ Slammed into C-30 ARC. 07621_ C-30 ARC bursts open, deploying its payload. 07621_ H-88 Terminator unfolds itself. 07621_ Penetrated by Slug. 07630_ Slammed into W-44 Eye. 07631_ System corrupted: Component data lost. 07633_ Slammed into W-44 Eye. 07640_ Slammed into K-01 Serf. Map ----- +----------------------------------------------------+ | ?????????????????????????????????????????????????? | | ?????????????????????????????????????????????????? | | ?????????????????????????????????????????????????? | | ?????????????????????????????????????????????????? | | ?????????????????????????????????????????????????? | | ?????????????????????????????????????????????????? | | ?????????????????????????????????????????????????? | | ?????????????????????????????????????????????????? | | ?????????????????????????????????????????????????? | | ?????????????????????????????????????????????????? | | ?????????????????????????????????????????????????? | | ???????????????????????????????????"?????????????? | | ??????????????????????????????????? ?????????????? | | ????????????????##????????????????? ?????????????? | | ????????????????? ????????????????/?????????????? | | ????????????????? ??????????????? ?????????????? | | ?????????????????? ??????????????? ?????????????? | | ??????????????????? ?????????????# #????????????? | | ??????????????????? ????????????# #????????????? | | ???????????????????? ?####+###???# #????????????? | | ????????????????????? # u #???# ########?????? | | ?????????????????????? # #???# # ! #?????? | | ?????????????# ????????/ #???# # *#?????? | | ?????????????# ????# ##### # #?????? | | ?????????????# = # s %+ #?????? | | ?????????????# s @ ##### # #?????? | | ?????????????# ###+####???# # #?????? | | ????????????## ???# #??????# ######+#?????? | | ????????????# s### #??????# #????#%#?????? | | ????????????# s ss ######## #????#%#?????? | | ????????????+ s s s #????#%#?????? | | ????????????# c #????#%#?????? | | ????????????# ####+##############????# ####### | | ????????????###??????????????????????????# % # | | ?????????????????????????????????????????####+## # | | ??????????????????????????????????????????? # # | | ????????????????????????????????????????? ! # # | | ????????????????????????????????????????# # # | | ????????????????????????????????????????# # T | | ????????????????????????????????????????# * # | | ????????????????????????????????????????######## # | | ???????????????????????????????????????????????# # | | ???????????????????????????????????????????????# # | | ???????????????????????????????????????????????# # | | ???????????????????????????????????????????????# # | | ???????????????????????????????????????????????# # | | ???????????????????????????????????????????????# # | | ?????????????????????????????????? ##+######"# | | ?????????????????????????????????# "%# | | ????????????????????????????????? %/ | +----------------------------------------------------+ Best States ------------- Heat Dissipation 122 Coolant Potential 100 Energy Generation 40 Energy Capacity 375 Matter Stores 315 Matter Capacity 450 Sight Range 16 Terrain Scan Range 16 Terrain Scan Density 85 Armor Coverage 375 Resistance: KI 20 Resistance: TH 25 Weapon Cycling 30 Evasion (%) 61 Targeting Accuracy 12 Target Analysis 12 Recoil Reduction 2 Kinecelleration 30 Item Schematics ----------------- None Robot Schematics ------------------ None Fabricated ------------ Nothing Repaired ---------- Nothing Studied --------- Com. Wheel | -8/Materials | Hacked Arm. Wheel | -8/Materials | Hacked Coil Gun | -6/Factory | Hacked KE Penetrator | -4/Factory | Hacked Railgun | -4/Factory | Hacked Impulse Thruster Array | -3/Research | Hacked Lgt. Antimatter Reactor | -2/Research | Hacked Alien Tech Used ----------------- None Achievements -------------- None Challenges ------------ None Game ------ Seed ReinforcedSigixBasin Manual? 0 Play Time 01:36:40 Cumulative 114.8 hours Start 2026.07.26 @ 01:03:54 End 2026.07.26 @ 02:37:53 Sessions 1 Manual Loads 0 Difficulty Rogue Special Mode None Game No. 128 Rogue 74 Adventurer 54 Explorer 0 Win Type - Total 3 Types 2/0/0/1/0/0/0/0/0/0 Lore% 51 Gallery% 49 Achievement% 44 Wizard Run 0 Options --------- Layout 1 ASCII 0 Keyboard 0 Movement Mouse Keybinds 1 Fullscreen 1 Font 32/Tamsyn Map View 50x35 Zoom Use 0% Tactical HUD 1 Map Filters NONE Filters NONE Steam 1 RUN: 0a7cd940-5101-4feb-ae13-7700fa150987